[Event "45th FIDE Olympiad 2024"]
[Site "Budapest"]
[Date "2024.09.14"]
[Round "4.40"]
[White "Jones, Gawain C B"]
[Black "Pantsulaia, Levan"]
[Result "1/2-1/2"]
[ECO "A42"]
[WhiteElo "2646"]
[BlackElo "2516"]
[Annotator "TA"]
[PlyCount "103"]
[EventDate "2024.09.05"]
[EventType "team-tourn"]
[EventCountry "HUN"]
[SourceTitle "playchess.com"]
[Source "ChessBase"]
[SourceQuality "1"]
[WhiteTeam "England"]
[BlackTeam "Georgia"]
[WhiteTeamCountry "ENG"]
[BlackTeamCountry "GEO"]
[TimeControl "40/5400+30:1800+30"]

{[%evp 34,103,4,0,2,-34,-25,-30,-20,-37,-47,-39,-44,-46,-39,-40,-33,-31,-36,-45,-17,-29,0,-25,0,-57,0,-26,-13,-34,0,0,0,0,-14,-6,-7,-16,0,0,0,0,0,0,0,-35,12,-12,-19,-53,-61,-49,-71,-57,-41,-31,0,0,0,0,0,0,0,0,0,0,0,0,0,0,0,0]} 1. c4 {[%emt 0:00:04]} c5 {[%emt 0:00:26]} 2. Nf3 {[%emt 0:00:08]} g6 {[%emt 0:00:29]} 3. e4 {[%emt 0:00:12]} Bg7 {[%emt 0:00:07]} 4. d4 {[%emt 0:00:05]} d6 {[%emt 0:00:50]} 5. Nc3 {[%emt 0:01:48]} Bg4 {[%emt 0:02:49]} 6. dxc5 {[%emt 0:00:32] A42: Modern Defence: Averbakh Variation.} Bxc3+ {[%emt 0:00:08]} 7. bxc3 {[%emt 0:00:05]} dxc5 {[%emt 0:00:05]} 8. Qxd8+ {[%emt 0:00:19]} Kxd8 {[%emt 0:00:04]} 9. Ne5 {[%emt 0:01:08]} Be6 {[%emt 0:00:07]} 10. Be3 {[%emt 0:00:44]} Nf6 {[%emt 0:02:10]} 11. O-O-O+ $146 {[%emt 0:15:55]} ({Predecessor:} 11. Bd3 Nbd7 12. Nxd7 Nxd7 13. f4 f6 14. O-O-O Rc8 15. Kb2 Rc6 16. Rd2 Kc8 17. Rhd1 {0-1 Hernandez Tellez,C (1908)-Maldonado Mena,G (2104) Malaga op 16th 2022 (3)}) 11... Ke8 {[%emt 0:02:59]} 12. Bxc5 {[%emt 0:03:49]} Nxe4 {[%emt 0:03:52]} 13. Bd4 {[%emt 0:00:05]} f6 {[%emt 0:01:05]} 14. Re1 {[%emt 0:09:38]} Bf5 {[%emt 0:38:17]} 15. f3 {[%emt 0:00:23]} fxe5 {[%emt 0:05:29]} 16. Bxe5 {[%emt 0:00:33]} Rf8 {[%emt 0:05:48]} 17. fxe4 {[%emt 0:00:28]} Be6 {[%emt 0:00:19]} 18. Bd4 {[%emt 0:13:31]} Nd7 {[%emt 0:01:29]} 19. Be2 {[%emt 0:04:19]} Rc8 {[%emt 0:01:42]} 20. e5 {[%emt 0:03:15]} (20. Bxa7 b6 21. a4 Rc7 $19 (21... Bxc4 22. a5 $17) (21... Ra8 $2 22. Bxb6 Nxb6 23. c5 $19)) 20... Bxc4 {[%emt 0:06:45]} 21. Bf3 {[%emt 0:02:15]} Nc5 {[%emt 0:02:29]} 22. Kb1 {[%emt 0:01:00]} b6 {[%emt 0:05:09]} 23. Rd1 {[%emt 0:01:48]} Bd3+ {[%emt 0:03:25]} 24. Kb2 {[%emt 0:05:27]} Be4 {[%emt 0:00:06]} 25. Bg4 {[%emt 0:00:37]} Rc7 {[%emt 0:03:46]} 26. Rd2 {[%emt 0:01:28]} Na4+ {[%emt 0:04:53]} 27. Kb3 {[%emt 0:00:21]} Nc5+ {[%emt 0:00:06]} 28. Kb2 {[%emt 0:05:03]} Na4+ {[%emt 0:00:07]} 29. Kb3 {[%emt 0:07:34]} Nc5+ {[%emt 0:00:06]} ({Better is} 29... Rf4 $1 $15 30. Bh3 b5) 30. Ka3 {[%emt 0:00:55]} Rf4 {[%emt 0:00:32]} 31. h3 {[%emt 0:04:13]} Bf5 {[%emt 0:01:08]} 32. g3 $1 {[%emt 0:01:30]} Ne4 $1 {[%emt 0:00:32]} 33. gxf4 {[%emt 0:05:31]} (33. Rg2 Bxg4 34. gxf4 Bf3 $19) 33... Nxd2 {[%emt 0:00:03]} 34. Bxf5 {[%emt 0:03:51]} gxf5 {[%emt 0:00:08]} 35. Kb4 {[%emt 0:00:03]} Ne4 {[%emt 0:01:08]} 36. Rg1 {[%emt 0:01:56]} Kf7 {[%emt 0:00:19]} 37. a4 {[%emt 0:00:44]} h5 {[%emt 0:04:01]} 38. h4 {[%emt 0:00:39]} Ke6 {[%emt 0:01:42]} 39. c4 {[%emt 0:01:34]} Kf7 {[%emt 0:00:56]} (39... Nd2 $15 40. Rc1 Rd7) 40. Rg2 {[%emt 0:00:48]} Rd7 {[%emt 0:00:53]} 41. Bg1 {[%emt 0:34:09]} Rd1 {[%emt 0:32:25]} 42. Kb5 {[%emt 0:02:28]} Rb1+ {[%emt 0:00:00]} 43. Kc6 {[%emt 0:00:00]} Rb4 {[%emt 0:00:00]} 44. a5 $1 {[%emt 0:00:00]} Rxc4+ {[%emt 0:00:00]} 45. Kd5 $1 {[%emt 0:00:00]} Ra4 {[%emt 0:00:00]} (45... Rc1 $5 46. e6+ $8 Kf8 $11) 46. e6+ {[%emt 0:00:00]} Kf8 $1 {[%emt 0:00:00]} 47. Bd4 {[%emt 0:00:00]} (47. axb6 Nf6+ 48. Ke5 (48. Kc6 $2 axb6 49. Re2 Rxf4 $19) 48... Ra5+ 49. Kd4 axb6 $15) 47... Rxa5+ {[%emt 0:00:00]} (47... bxa5 $2 {too greedy.} 48. Rg6 $18) 48. Kc6 {[%emt 0:00:00]} Nf6 {[%emt 0:00:00]} 49. Bxf6 {[%emt 0:00:00]} Rc5+ $1 {[%emt 0:00:00]} 50. Kd7 {[%emt 0:00:00]} Rd5+ {[%emt 0:00:00]} 51. Kc6 {[%emt 0:00:00]} Rc5+ {[%emt 0:00:00]} 52. Kd7 {[%emt 0:00:00]} 1/2-1/2

[Event "45th FIDE Olympiad 2024"]
[Site "Budapest"]
[Date "2024.09.14"]
[Round "4.40"]
[White "Mwale, George"]
[Black "Motlomelo, Lihloela"]
[Result "1-0"]
[ECO "A30"]
[WhiteElo "2056"]
[BlackElo "1696"]
[PlyCount "131"]
[EventDate "2024.09.05"]
[EventType "team-tourn"]
[EventCountry "HUN"]
[WhiteTeam "Malawi"]
[BlackTeam "Lesotho"]
[WhiteTeamCountry "MWI"]
[BlackTeamCountry "LES"]
[TimeControl "40/5400+30:1800+30"]

1. Nf3 Nf6 2. g3 b6 3. Bg2 Bb7 4. d4 e6 5. c4 c5 6. O-O cxd4 7. Qxd4 Nc6 8. Qd1 Be7 9. Nc3 O-O 10. Bf4 Nh5 11. Bd6 Bxd6 12. Qxd6 Qe7 13. Rfd1 Qxd6 14. Rxd6 Nf6 15. Rad1 Ne7 16. Ne5 Bxg2 17. Kxg2 Rfd8 18. Nxd7 Nxd7 19. Rxd7 Rxd7 20. Rxd7 Kf8 21. Nb5 Nc6 22. Rc7 a6 23. Nd6 Nd8 24. b4 g6 25. c5 bxc5 26. bxc5 a5 27. a4 Ra6 28. Rd7 Ra8 29. Kf3 Kg7 30. Ke4 Rb8 31. Kd3 Rb3+ 32. Kc2 Rb8 33. Kc3 h5 34. Ra7 Kf6 35. Rxa5 Ke5 36. Rb5 Ra8 37. Nc4+ Kf6 38. Ra5 Rc8 39. Nd6 Rb8 40. Ra7 Ke5 41. Nxf7+ Nxf7 42. Rxf7 Kd5 43. Rf6 g5 44. Rg6 Kxc5 45. Rxg5+ Kd6 46. Rxh5 Ra8 47. a5 e5 48. Rh6+ Kd5 49. a6 Rc8+ 50. Kd2 Ra8 51. h4 Ra7 52. h5 Ke4 53. f3+ Kf5 54. Rb6 Kg5 55. h6 Rh7 56. Ke3 Kf5 57. g4+ Kg5 58. Ke4 Ra7 59. Kxe5 Re7+ 60. Re6 Ra7 61. Kd5 Rd7+ 62. Kc6 Rh7 63. Kb6 Kf4 64. a7 Rh8 65. Re7 Rxh6+ 66. Kb7 1-0

[Event "45th FIDE Olympiad 2024"]
[Site "Budapest"]
[Date "2024.09.14"]
[Round "4.41"]
[White "Bjerre, Jonas Buhl"]
[Black "Maghsoodloo, Parham"]
[Result "1/2-1/2"]
[ECO "C84"]
[WhiteElo "2648"]
[BlackElo "2723"]
[Annotator "TA"]
[PlyCount "60"]
[EventDate "2024.09.05"]
[EventType "team-tourn"]
[EventCountry "HUN"]
[SourceTitle "playchess.com"]
[Source "ChessBase"]
[SourceQuality "1"]
[WhiteTeam "Denmark"]
[BlackTeam "Iran"]
[WhiteTeamCountry "DEN"]
[BlackTeamCountry "IRI"]
[TimeControl "40/5400+30:1800+30"]

{[%evp 15,60,12,24,14,16,10,31,9,14,14,10,14,4,7,8,9,12,0,0,0,9,0,11,10,18,24,21,29,65,66,62,37,47,12,49,34,58,0,0,0,0,0,0,0,0,0,0]} 1. e4 {[%emt 0:00:05]} e5 {[%emt 0:00:09]} 2. Nf3 {[%emt 0:00:08]} Nc6 {[%emt 0:00:06]} 3. Bb5 {[%emt 0:00:09]} a6 {[%emt 0:00:06]} 4. Ba4 {[%emt 0:00:06]} Nf6 {[%emt 0:00:06]} 5. O-O {[%emt 0:00:11]} Be7 {[%emt 0:00:52]} 6. d3 {[%emt 0:00:32]} b5 {[%emt 0:00:36]} 7. Bb3 {[%emt 0:00:06]} O-O {[%emt 0:00:30]} 8. a4 {[%emt 0:02:27]} Bb7 {[%emt 0:00:09]} 9. axb5 {[%emt 0:09:07]} axb5 {[%emt 0:00:30]} 10. Rxa8 {[%emt 0:00:09]} Bxa8 {[%emt 0:07:15]} 11. Nc3 {[%emt 0:04:06] White is slightly better.} b4 {[%emt 0:03:28]} 12. Nd5 {[%emt 0:04:09]} Na5 {[%emt 0:02:31]} 13. Nxe7+ {[%emt 0:06:17]} (13. Nxe5 Nxb3 14. cxb3 Nxd5 15. exd5 Bxd5 $15) 13... Qxe7 {[%emt 0:00:55]} 14. Ba2 {[%emt 0:00:42]} d5 $1 {[%emt 0:03:32]} 15. exd5 {[%emt 0:03:32]} Bxd5 {[%emt 0:11:00]} 16. Bxd5 {[%emt 0:12:17]} Nxd5 {[%emt 0:00:37]} 17. Qe2 {[%emt 0:00:40]} Re8 {[%emt 0:07:01]} 18. Re1 {[%emt 0:04:42][%cal Bf1e1,Be1a1,Ba1a6][%mdl 32]} f6 {[%emt 0:06:16]} 19. Qe4 {[%emt 0:04:34]} Qf7 {[%emt 0:08:05]} 20. Bd2 {[%emt 0:02:17]} Nc6 {[%emt 0:01:15][%cal Ba5c6,Bc6e7,Be7f5][%mdl 32]} 21. Ra1 {[%emt 0:02:47]} Rb8 {[%emt 0:01:53]} 22. Ra6 {[%emt 0:03:40]} Qd7 {[%emt 0:02:27]} 23. Qc4 {[%emt 0:03:13] White is more active.} Nce7 {[%emt 0:03:58]} 24. Be3 {[%emt 0:03:16]} Kh8 {[%emt 0:11:46]} 25. h3 {[%emt 0:09:19]} h6 {[%emt 0:05:02][%cal Ob4b3]} 26. Nd2 {[%emt 0:03:28]} ({Better is} 26. b3 $14) 26... Nf5 $11 {[%emt 0:02:57] The position is equal.} 27. Bc5 {[%emt 0:05:34]} Nf4 $1 {[%emt 0:02:12] [#] Hoping for ...Nh4.} 28. Be3 {[%emt 0:01:47]} (28. Bxb4 Nh4 29. Ra3 Nxh3+ (29... Nhxg2 $2 30. d4 $19) 30. gxh3 Qxh3 $19) 28... Nd5 {[%emt 0:05:29]} 29. Bc5 {[%emt 0:00:27]} Nf4 {[%emt 0:05:58] And now ...Nh4 would win.} 30. Be3 {[%emt 0:00:47]} (30. Bxb4 $2 {perishes.} Nh4 31. d4 Nxh3+ (31... Qxd4 32. Qxd4 exd4 33. Ra4 $17) (31... exd4 $2 32. Ba5 $19) (31... Nfxg2 32. dxe5 Qxh3 33. Ra3 $11) 32. gxh3 Qxh3 $19) 30... Nd5 {[%emt 0:00:12] Weighted Error Value: White=0.08 (flawless) /Black=0.07 (flawless) .  Mistake:       	White=1     	---        Inaccurate:     	White=1     	Black=2      OK:         	White=11    	Black=6      Best:        	White=1     	Black=1      Strong:       	---       	Black=2} 1/2-1/2

[Event "45th FIDE Olympiad 2024"]
[Site "Budapest"]
[Date "2024.09.14"]
[Round "4.41"]
[White "Van Bemmelen, Ursus"]
[Black "Mathurin, Nathaniel"]
[Result "1/2-1/2"]
[ECO "D05"]
[WhiteElo "2146"]
[BlackElo "1982"]
[PlyCount "99"]
[EventDate "2024.09.05"]
[EventType "team-tourn"]
[EventCountry "HUN"]
[WhiteTeam "Netherlands Antilles"]
[BlackTeam "Saint Lucia"]
[WhiteTeamCountry "AHO"]
[TimeControl "40/5400+30:1800+30"]

1. d4 Nf6 2. Nf3 d5 3. e3 e6 4. Bd3 c5 5. b3 cxd4 6. exd4 Bd6 7. O-O O-O 8. Bb2 Nc6 9. Nbd2 Nb4 10. Be2 Qc7 11. a3 Nc6 12. Bd3 Re8 13. Re1 e5 14. dxe5 Nxe5 15. Nxe5 Bxe5 16. Bxe5 Rxe5 17. Nf3 Rh5 18. h3 Be6 19. Qd2 Bf5 20. Be2 Bg6 21. Nd4 Re5 22. Bf3 Rae8 23. a4 Be4 24. Be2 Rc8 25. Rac1 h6 26. c4 dxc4 27. Nb5 Qb8 28. Bxc4 Rd8 29. Qf4 a6 30. Nc3 Rde8 31. Nxe4 Rxe4 32. Rxe4 Nxe4 33. Qxf7+ Kh8 34. Bd3 Rf8 35. Qg6 Qf4 36. Rf1 Ng5 37. Kh1 Rf6 38. Qe8+ Rf8 39. Qh5 Rd8 40. Qg6 Qd2 41. Bf5 Qe2 42. Kg1 Rf8 43. Bd3 Qe5 44. Rc1 Qb2 45. Rc2 Qa1+ 46. Kh2 Qe5+ 47. Kg1 Qe1+ 48. Kh2 Qe5+ 49. Kg1 Qe1+ 50. Kh2 1/2-1/2

[Event "45th FIDE Olympiad 2024"]
[Site "Budapest"]
[Date "2024.09.14"]
[Round "4.42"]
[White "Tabatabaei, M. Amin"]
[Black "Andersen, Mads"]
[Result "1/2-1/2"]
[ECO "D30"]
[WhiteElo "2714"]
[BlackElo "2598"]
[Annotator "TA"]
[PlyCount "136"]
[EventDate "2024.09.05"]
[EventType "team-tourn"]
[EventCountry "HUN"]
[SourceTitle "playchess.com"]
[Source "ChessBase"]
[SourceQuality "1"]
[WhiteTeam "Iran"]
[BlackTeam "Denmark"]
[WhiteTeamCountry "IRI"]
[BlackTeamCountry "DEN"]
[TimeControl "40/5400+30:1800+30"]

{[%evp 20,136,44,46,36,35,38,36,41,29,31,24,31,24,22,22,35,30,38,35,33,43,30,36,41,31,47,8,29,31,34,0,20,0,0,-8,-4,-16,-4,-12,0,-3,0,-33,0,0,0,0,8,2,2,8,6,6,118,135,132,117,135,134,135,135,135,135,135,135,135,135,135,131,131,131,135,131,131,131,131,131,172,81,103,78,73,0,103,81,81,81,81,81,81,81,81,81,81,81,81,81,81,81,81,81,81,81,81,81,81,81,81,0,81,81,81,81,81,81,81,0,88]} 1. d4 {[%emt 0:00:12]} Nf6 {[%emt 0:00:16]} 2. Nf3 {[%emt 0:01:43]} e6 {[%emt 0:00:28]} 3. e3 {[%emt 0:00:56]} c5 {[%emt 0:01:58]} 4. c4 {[%emt 0:01:21]} d5 {[%emt 0:00:34]} 5. cxd5 {[%emt 0:00:08]} exd5 {[%emt 0:00:32]} 6. Bb5+ {[%emt 0:00:06]} Bd7 {[%emt 0:05:18]} 7. Bxd7+ {[%emt 0:00:42]} Nbxd7 {[%emt 0:05:33]} 8. dxc5 {[%emt 0:04:03]} Nxc5 {[%emt 0:01:00]} 9. O-O {[%emt 0:03:16]} Be7 {[%emt 0:00:49]} 10. Nc3 {[%emt 0:08:58]} O-O {[%emt 0:07:43]} 11. b3 {[%emt 0:00:39]} Qd7 {[%emt 0:10:47]} 12. Bb2 {[%emt 0:01:04]} Rfd8 {[%emt 0:00:24]} 13. Rc1 {[%emt 0:03:26]} Rac8 {[%emt 0:05:28] White is slightly better.} 14. Qe2 {[%emt 0:10:33]} Nfe4 {[%emt 0:03:30]} 15. Rfd1 {[%emt 0:00:52]} Nxc3 {[%emt 0:01:30]} 16. Bxc3 {[%emt 0:01:48]} Ne4 {[%emt 0:05:06]} 17. Bd4 {[%emt 0:04:34]} Bf6 {[%emt 0:06:26]} 18. Qb2 {[%emt 0:06:08]} (18. Bxa7 Nc3 19. Rxc3 Rxc3 $17 (19... Bxc3 20. Bb6 $17)) 18... Rxc1 {[%emt 0:04:51]} 19. Rxc1 {[%emt 0:00:28]} Rc8 {[%emt 0:00:23]} 20. Bxf6 {[%emt 0:00:28]} Nxf6 {[%emt 0:00:45]} 21. Nd4 {[%emt 0:00:11]} a6 {[%emt 0:11:00]} 22. h3 {[%emt 0:02:24]} h5 {[%emt 0:02:41]} 23. Rd1 {[%emt 0:11:58]} g6 {[%emt 0:04:39]} 24. Ne2 {[%emt 0:03:19]} Qf5 {[%emt 0:01:28]} 25. Nd4 {[%emt 0:01:20] Prevents Rc2.} Qd7 {[%emt 0:00:32]} 26. a4 {[%emt 0:03:47]} Qc7 {[%emt 0:03:24]} 27. b4 {[%emt 0:08:54]} Qc3 {[%emt 0:01:28]} 28. Rb1 {[%emt 0:07:37]} Qxb2 {[%emt 0:02:37]} 29. Rxb2 $11 {[%emt 0:00:01][%mdl 4096] Endgame. KRN-KRN} Rc1+ {[%emt 0:01:20]} 30. Kh2 {[%emt 0:00:02]} Ne4 {[%emt 0:01:12]} 31. h4 {[%emt 0:01:36]} b6 {[%emt 0:05:21]} 32. a5 {[%emt 0:03:00]} bxa5 {[%emt 0:02:01]} 33. bxa5 {[%emt 0:01:07]} Rc5 {[%emt 0:00:36]} 34. f3 {[%emt 0:04:29]} Nd6 {[%emt 0:01:13]} 35. Rb6 {[%emt 0:01:47][%csl LRa6,LRd6]} Nc4 {[%emt 0:00:13]} 36. Nb3 {[%emt 0:01:25]} Nxb6 {[%emt 0:02:21]} (36... Rc8 $1 $11 37. Rxa6 Nxe3) 37. Nxc5 {[%emt 0:00:08] KN-KN} Nc4 {[%emt 0:00:08]} 38. Nxa6 {[%emt 0:00:06]} Nxa5 {[%emt 0:00:09]} 39. Nb4 {[%emt 0:00:17]} Nc4 {[%emt 0:01:13]} 40. Nxd5 {[%emt 0:00:04]} Ne5 {[%emt 0:00:41]} 41. Kg3 {[%emt 0:30:49]} Nd3 {[%emt 0:30:28]} 42. Nf4 {[%emt 0:00:35]} Ne5 {[%emt 0:00:20]} 43. e4 {[%emt 0:01:34][%cal Be3e4,Be4e5][%mdl 32]} Kg7 {[%emt 0:00:00]} 44. Kf2 {[%emt 0:00:00]} Kf6 {[%emt 0:00:00]} 45. Ke3 {[%emt 0:00:00]} Nc6 {[%emt 0:00:00]} 46. Nd3 {[%emt 0:00:00]} Ke6 {[%emt 0:00:00]} 47. Kf4 {[%emt 0:00:00] And now Kg5 would win.} Kf6 {[%emt 0:00:00]} 48. e5+ {[%emt 0:00:00]} Kg7 {[%emt 0:00:00] [#]} 49. Nc5 {[%emt 0:00:00]} (49. Ke4 $1 $18) 49... Ne7 {[%emt 0:00:00]} 50. Kg5 {[%emt 0:00:47]} Nc6 {[%emt 0:00:00]} 51. Kf4 {[%emt 0:01:47]} Ne7 $1 {[%emt 0:00:00]} 52. g4 {[%emt 0:00:58] Wards off Nf5} Nd5+ {[%emt 0:00:00]} 53. Ke4 {[%emt 0:00:35]} Nc3+ {[%emt 0:00:00]} 54. Kd4 {[%emt 0:00:34]} hxg4 {[%emt 0:00:00]} 55. fxg4 {[%emt 0:00:01]} (55. Kxc3 $2 {loses.} g3 56. e6 (56. h5 $2 gxh5 57. e6 f6 $19) 56... f6 $19 (56... g2 57. e7 $15)) 55... Ne2+ {[%emt 0:00:00]} 56. Ke3 {[%emt 0:01:42]} Nc3 57. Nd7 {[%emt 0:03:08]} Nd5+ {[%emt 0:00:00]} 58. Kf3 {[%emt 0:00:11]} Nc7 {[%emt 0:00:41]} 59. Nf6 {[%emt 0:00:00]} Ne6 {[%emt 0:00:21]} 60. Ke4 {[%emt 0:00:00]} Kf8 {[%emt 0:02:32]} 61. Nd5 {[%emt 0:00:00]} Nc5+ {[%emt 0:00:43]} 62. Ke3 {[%emt 0:00:00]} Kg7 {[%emt 0:00:44]} 63. Nc7 {[%emt 0:00:06]} Kf8 {[%emt 0:00:46]} 64. Nd5 {[%emt 0:01:34]} Kg7 $1 {[%emt 0:00:12]} 65. Kd4 {[%emt 0:00:50]} Ne6+ {[%emt 0:00:16]} 66. Kc4 {[%emt 0:00:13]} Kf8 {[%emt 0:00:43]} 67. Kd3 {[%emt 0:01:44]} Nc5+ {[%emt 0:00:30]} 68. Ke3 {[%emt 0:00:09]} Kg7 $1 {[%emt 0:01:54] Weighted Error Value: White=0.09 (flawless) /Black=0.08 (flawless) .  Mistake:       	White=1     	Black=1      Inaccurate:     	White=2     	Black=2      OK:         	White=18    	Black=33     Best:        	White=3     	Black=1      Strong:       	---       	Black=3} 1/2-1/2

[Event "45th FIDE Olympiad 2024"]
[Site "Budapest"]
[Date "2024.09.14"]
[Round "4.42"]
[White "Gabriel, Sixtus"]
[Black "Capella, Rurik"]
[Result "0-1"]
[ECO "B45"]
[WhiteElo "1800"]
[BlackElo "1971"]
[PlyCount "54"]
[EventDate "2024.09.05"]
[EventType "team-tourn"]
[EventCountry "HUN"]
[WhiteTeam "Saint Lucia"]
[BlackTeam "Netherlands Antilles"]
[BlackTeamCountry "AHO"]
[TimeControl "40/5400+30:1800+30"]

1. e4 c5 2. Nf3 e6 3. Nc3 Nc6 4. d4 cxd4 5. Nxd4 Bc5 6. Nb3 Bb6 7. Bf4 a6 8. Be2 Nge7 9. Qd2 O-O 10. f3 d5 11. exd5 Nxd5 12. Nxd5 exd5 13. O-O-O Be6 14. Be3 Rc8 15. Kb1 Re8 16. Bxb6 Qxb6 17. c3 a5 18. Rhe1 a4 19. Nd4 a3 20. b3 Nxd4 21. cxd4 Bf5+ 22. Ka1 Rc2 23. Bf1 Rec8 24. Qf4 Qc6 25. Qe3 b5 26. g4 b4 27. gxf5 Rxa2+ {0-} 0-1

[Event "45th FIDE Olympiad 2024"]
[Site "Budapest"]
[Date "2024.09.14"]
[Round "4.43"]
[White "Thybo, Jesper Sondergaard"]
[Black "Daneshvar, Bardiya"]
[Result "0-1"]
[ECO "E91"]
[WhiteElo "2555"]
[BlackElo "2598"]
[Annotator "TA"]
[PlyCount "108"]
[EventDate "2024.09.05"]
[EventType "team-tourn"]
[EventCountry "HUN"]
[SourceTitle "playchess.com"]
[Source "ChessBase"]
[SourceQuality "1"]
[WhiteTeam "Denmark"]
[BlackTeam "Iran"]
[WhiteTeamCountry "DEN"]
[BlackTeamCountry "IRI"]
[TimeControl "40/5400+30:1800+30"]

{[%evp 31,108,-14,-29,-35,-29,-25,-22,-36,-49,-34,-31,-78,-77,-75,-37,-38,-34,-38,-35,-75,-66,-68,-69,-153,-154,-145,-142,-127,-123,-203,-195,-196,-198,-193,-194,-197,-194,-194,-194,-194,-194,-194,-117,-133,-142,-131,-121,-131,-94,-96,-90,-89,-86,-85,-101,-81,-109,-92,-107,-404,-398,-791,-241,-279,-302,-645,-652,-1314,-610,-1151,-1131,-5057,-29971,-29980,-29981,-29992,-29993,-29993,-29994]} 1. d4 {[%emt 0:00:04]} Nf6 {[%emt 0:00:04]} 2. c4 {[%emt 0:00:07]} g6 {[%emt 0:00:03]} 3. Nc3 {[%emt 0:01:25]} Bg7 {[%emt 0:00:05]} 4. e4 {[%emt 0:00:26]} d6 {[%emt 0:00:03]} 5. Be2 {[%emt 0:00:28]} O-O {[%emt 0:00:05]} 6. Nf3 {[%emt 0:00:26]} e5 {[%emt 0:00:09]} 7. O-O {[%emt 0:01:32]} h6 {[%emt 0:00:05]} 8. dxe5 {[%emt 0:15:15]} dxe5 {[%emt 0:00:04]} 9. Qxd8 {[%emt 0:00:14]} Rxd8 {[%emt 0:00:05]} 10. Nxe5 {[%emt 0:00:08]} Nxe4 {[%emt 0:00:54]} 11. Nxe4 {[%emt 0:00:18]} Bxe5 {[%emt 0:00:03]} 12. Bxh6 {[%emt 0:00:20] E91: King's Indian: Classical: 6 Be2, unusual replies including 6...c5 and 6...Bg4.} Bxb2 {[%emt 0:04:33]} 13. Rab1 {[%emt 0:03:00]} Bg7 {[%emt 0:05:00]} 14. Bxg7 {[%emt 0:17:49]} Kxg7 {[%emt 0:00:06]} 15. Bf3 {[%emt 0:00:05]} Nd7 {[%emt 0:08:03]} 16. Rfd1 {[%emt 0:06:12]} Re8 {[%emt 0:03:08]} 17. Nc3 {[%emt 0:03:30]} c6 {[%emt 0:01:38]} 18. Ne4 $146 {[%emt 0:00:11]} ({Predecessor:} 18. Rb2 Nc5 19. Rbd2 g5 20. g3 Bf5 21. Rd4 Re5 22. h4 Rh8 23. hxg5 Ne6 24. R4d2 Nxg5 25. Be2 b6 26. Rb2 Ree8 {½-½ Broccardo,N (1514)-Dats,D (1600) FICGS rapid B 000067 email 2007 (1)}) 18... Ne5 {[%emt 0:03:18]} 19. Nd6 {[%emt 0:02:33]} Nxf3+ {[%emt 0:02:00]} 20. gxf3 {[%emt 0:00:07]} Re7 {[%emt 0:00:07]} 21. c5 {[%emt 0:00:48]} (21. a4 $15 {feels stronger.}) 21... Be6 $17 {[%emt 0:10:23]} 22. a4 {[%emt 0:02:59]} Bd5 {[%emt 0:07:24]} (22... b6 $5 23. Kg2 Bd5 $17 (23... bxc5 24. Rdc1 $17)) 23. a5 {[%emt 0:00:48]} Bxf3 {[%emt 0:04:21]} 24. Re1 {[%emt 0:00:39]} Rd7 {[%emt 0:08:23]} 25. Rxb7 {[%emt 0:09:57]} Rxb7 {[%emt 0:03:26]} 26. Nxb7 {[%emt 0:00:04]} a6 {[%emt 0:01:33]} 27. Kf1 {[%emt 0:12:50]} (27. Nd6 $15) 27... Rh8 $17 {[%emt 0:03:42]} 28. Re3 {[%emt 0:00:38]} Bd5 {[%emt 0:01:08]} 29. h3 {[%emt 0:01:40]} Rb8 {[%emt 0:06:32]} 30. Re7 {[%emt 0:02:15]} (30. Nd6 $17) 30... Kf6 $19 {[%emt 0:03:20]} 31. Rc7 {[%emt 0:04:47]} Ke5 {[%emt 0:09:29]} 32. Ke2 {[%emt 0:02:25]} Kd4 {[%emt 0:01:22]} 33. Re7 {[%emt 0:02:05]} Rh8 {[%emt 0:02:26]} 34. Re3 {[%emt 0:00:53]} Be6 {[%emt 0:00:34]} 35. Rd3+ {[%emt 0:00:39] [#]} Kc4 $1 {[%emt 0:01:25]} 36. Rf3 {[%emt 0:00:36]} f5 {[%emt 0:08:16]} ({Stronger than} 36... Bxh3 37. Rf4+ Kd5 38. Rxf7 $11) ({Better is} 36... Rxh3 $19 {Threatens to win with ...Bg4.} 37. Rxh3 Bxh3) 37. Kd2 {[%emt 0:01:32]} Rb8 {[%emt 0:02:48]} 38. Rc3+ {[%emt 0:08:32]} Kb4 {[%emt 0:00:07]} 39. Nd6 {[%emt 0:00:19]} Kxa5 {[%emt 0:00:33]} 40. Rg3 {[%emt 0:00:15]} Rb2+ {[%emt 0:02:17]} 41. Ke1 {[%emt 0:31:29]} Kb4 {[%emt 0:06:43]} 42. Rxg6 {[%emt 0:00:00]} Bb3 {[%emt 0:01:12]} 43. Nxf5 {[%emt 0:00:00]} Kxc5 {[%emt 0:01:00]} 44. Ne7 {[%emt 0:00:00]} Ba4 {[%emt 0:00:13]} 45. h4 $2 {[%emt 0:00:00][%mdl 8192]} (45. Rg5+ $17 {was called for.} Kb6 46. f4) 45... Bb5 $19 {[%emt 0:00:12]} 46. Kd1 $2 {[%emt 0:00:00]} (46. Nc8 a5 47. Rg3) 46... a5 $2 {[%emt 0:03:10]} (46... Rxf2 47. Rg3 $17) (46... Kd4 {...Kc3 would now be deadly.} 47. Kc1 Rxf2 48. Nxc6+ Kc3 49. Rg3+ Bd3 50. Rxd3+ Kxd3) 47. Kc1 {[%emt 0:00:00]} Rxf2 {[%emt 0:00:14]} 48. h5 $2 {[%emt 0:00:00]} (48. Rg3 a4 49. Kb1) 48... a4 $19 {[%emt 0:02:01]} 49. h6 {[%emt 0:00:07]} a3 {[%emt 0:04:55]} (49... Kb4 $142 50. Rg1 a3) 50. h7 $19 {[%emt 0:02:18]} Rh2 {[%emt 0:00:10]} 51. Rg5+ {[%emt 0:01:09]} Kb4 {[%emt 0:02:37]} 52. Rg4+ {[%emt 0:01:01]} Kc3 {[%emt 0:01:11]} 53. Kb1 {[%emt 0:00:17]} Bd3+ {[%emt 0:03:16]} 54. Ka1 {[%emt 0:00:06]} Kb3 {[%emt 0:00:04]} ({Weaker is} 54... Bxh7 55. Rg3+ Kb4 56. Nxc6+ Ka4 57. Rg4+ Kb5 58. Nd8 $15) 0-1

[Event "45th FIDE Olympiad 2024"]
[Site "Budapest"]
[Date "2024.09.14"]
[Round "4.43"]
[White "Van Opstal, Rurik"]
[Black "Elizee, Kaieem"]
[Result "1-0"]
[ECO "B48"]
[WhiteElo "2006"]
[BlackElo "1701"]
[PlyCount "35"]
[EventDate "2024.09.05"]
[EventType "team-tourn"]
[EventCountry "HUN"]
[WhiteTeam "Netherlands Antilles"]
[BlackTeam "Saint Lucia"]
[WhiteTeamCountry "AHO"]
[TimeControl "40/5400+30:1800+30"]

1. e4 c5 2. Nf3 e6 3. d4 cxd4 4. Nxd4 Nc6 5. Nc3 Qc7 6. Be3 a6 7. Qf3 Nf6 8. O-O-O Be7 9. Be2 b5 10. e5 Ng8 11. Nxc6 dxc6 12. Qg3 g6 13. Ne4 Bb7 14. Bg5 f6 15. exf6 Qxg3 16. hxg3 c5 17. fxe7 Bxe4 18. Rd8+ 1-0